bitfinex-derivatives/quotes_ETHF0:USTF0_20250116
["timestamp","ask_amount","ask_price","bid_price","bid_amount"]
[1737028724167,0.59634,3354.4,3354.3,1.34445213]
[1737028724568,0.59634,3354.4,3354.3,0.74811213]
[1737028725671,0.59634,3354.4,3354.3,0.35982855]
[1737028726061,0.59636,3354.2,3354.1,1.236]
[1737028726265,0.59636,3354.2,3354.1,1.98410107]
[1737028726774,0.59636,3354.2,3354.1,1.9840849]
[1737028727473,0.59636,3354.2,3354.1,1.59587533]
[1737028727676,0.59636,3354.2,3354.1,0.35987533]
[1737028728667,3.2078,3354.4,3353.9,1.0694]
[1737028728866,0.59639,3354.0,3353.9,1.0694]
[1737028729071,0.59639,3354.0,3353.9,1.81739273]
[1737028729469,0.59639,3354.0,3353.9,1.81738969]
[1737028730172,0.9457,3354.7,3353.9,1.22098969]
[1737028730377,0.59636,3354.3,3354.2,0.59633]
[1737028730577,0.59636,3354.3,3354.2,0.95615234]
[1737028731266,0.59636,3354.3,3354.2,1.34437549]
[1737028731467,0.59636,3354.3,3354.2,1.34439243]
[1737028733771,0.59636,3354.3,3354.2,0.74806243]
[1737028735081,0.59636,3354.3,3354.2,0.74943487]
[1737028735278,0.59636,3354.3,3354.2,1.34579487]
[1737028735576,0.59636,3354.3,3354.2,0.74943487]
[1737028735877,0.59636,3354.3,3354.2,1.34579487]
[1737028737978,4.69827,3355.2,3354.2,6.33287202]
[1737028738175,0.59625,3354.9,3354.7,2.37563715]
[1737028738375,0.59623,3354.9,3354.8,1.21173487]
[1737028738579,0.59623,3354.9,3354.8,2.26108487]
[1737028738787,0.59623,3354.9,3354.8,1.90057207]
[1737028738979,0.59623,3354.9,3354.8,2.26134778]
[1737028739280,0.59623,3354.9,3354.8,2.85063592]
[1737028740080,0.59623,3354.9,3354.8,2.25438592]
[1737028741481,0.59623,3354.9,3354.8,1.80128592]
[1737028742384,0.59623,3354.9,3354.8,1.33898592]
[1737028742883,0.59623,3354.9,3354.8,0.74969778]
[1737028743084,0.59623,3354.9,3354.8,1.33889652]
[1737028743277,0.59623,3354.9,3354.8,0.74969778]
[1737028743478,0.59629,3354.6,3354.5,0.5963]
[1737028743986,0.59629,3354.6,3354.5,1.94265671]
[1737028744578,0.59629,3354.6,3354.5,1.34635671]
[1737028745279,0.59629,3354.6,3354.5,1.94265671]
[1737028745684,0.59629,3354.6,3354.5,1.94265193]
[1737028746592,0.59628,3354.7,3354.6,0.59626]
[1737028746784,0.59628,3354.7,3354.6,1.94261193]
[1737028746985,0.59628,3354.7,3354.6,2.42931193]
[1737028749583,0.59628,3354.7,3354.6,2.42864695]
[1737028750287,0.59628,3354.7,3354.6,1.83238695]
[1737028750687,0.59628,3354.7,3354.6,1.34568695]
[1737028751987,0.5963,3354.5,3354.4,1.235]
[1737028752292,0.5963,3354.5,3354.4,2.57960339]
[1737028752590,0.5963,3354.5,3354.4,3.17592339]
[1737028752786,1.49056,3355.0,3354.4,2.57960339]
[1737028753095,0.59628,3354.8,3354.7,0.59624]
[1737028753286,0.59628,3354.8,3354.7,1.94076783]
[1737028754682,1.4014,3355.1,3354.7,1.34452783]
[1737028754987,0.59623,3355.0,3354.9,3.80402]
[1737028755185,0.59623,3355.0,3354.9,5.63776318]
[1737028756791,0.59623,3355.0,3354.9,5.04154318]
[1737028757186,0.59623,3355.0,3354.9,5.63771084]
[1737028757685,0.59623,3355.0,3354.9,5.04148084]
[1737028758091,0.59623,3355.0,3354.9,4.55208084]
[1737028758692,0.59623,3355.0,3354.9,1.34428084]
[1737028758997,0.59623,3355.0,3354.9,1.34482439]
[1737028760896,0.59622,3355.0,3354.9,1.34487918]
[1737028762694,0.59622,3355.0,3354.9,1.34497313]
[1737028764792,0.59634,3354.3,3354.2,0.59635]
[1737028765098,0.59634,3354.3,3354.2,0.98542252]
[1737028765298,0.59634,3354.3,3354.2,0.38906252]
[1737028765494,0.59634,3354.3,3354.2,0.98542252]
[1737028765700,0.59634,3354.3,3354.2,0.38906252]
[1737028766589,0.59634,3354.3,3354.2,0.38893917]
[1737028767700,0.59634,3354.3,3353.8,0.9251]
[1737028767999,0.59639,3354.0,3353.9,0.38885215]
[1737028769797,0.59646,3353.6,3353.5,0.9468]
[1737028770101,0.59646,3353.6,3353.5,0.38845525]
[1737028770297,0.4586,3353.8,3353.5,0.38850154]
[1737028770504,0.4586,3353.8,3353.3,3.2078]
[1737028770505,1.94971,3353.8,3353.3,3.2078]
[1737028770796,0.59646,3353.6,3353.5,0.38826675]
[1737028772602,0.59648,3353.5,3353.4,0.72579]
[1737028772901,0.59648,3353.5,3353.4,1.11364266]
[1737028774105,0.59648,3353.5,3353.4,0.1293]
[1737028774308,0.59648,3353.5,3353.4,1.11352313]
[1737028774802,0.59648,3353.5,3353.4,1.59832313]
[1737028775010,0.59648,3353.5,3353.4,1.00182313]
[1737028775303,0.59648,3353.5,3353.4,0.6141]
[1737028775504,0.59648,3353.5,3353.4,1.59816561]
[1737028775902,0.59648,3353.5,3353.4,1.00166561]
[1737028776102,0.59648,3353.5,3353.4,1.00179059]
[1737028776297,0.59648,3353.5,3353.4,0.6141]
[1737028776498,0.59648,3353.5,3353.4,0.1293]
[1737028776907,1.07328,3353.5,3353.4,0.1293]
[1737028780911,0.4768,3353.5,3352.4,4.9259]
[1737028781110,1.49139,3353.1,3352.5,0.35762928]
[1737028781410,0.59662,3352.8,3352.7,0.5966]
[1737028782012,0.4915,3353.0,3352.4,4.9259]
[1737028782212,0.59664,3352.7,3352.6,0.59661]
[1737028783010,0.4915,3353.0,3352.4,4.9259]
[1737028783206,0.59661,3352.9,3352.8,0.59659]
[1737028783713,0.4915,3353.0,3352.5,1.49165]
[1737028783714,1.08808,3353.0,3352.9,0.59659]
[1737028784008,0.4915,3353.0,3352.9,0.59659]
[1737028784204,0.59657,3353.0,3352.9,0.59657]
[1737028784409,0.59656,3353.1,3353.0,0.59656]
[1737028786113,0.59657,3353.1,3353.0,0.59655]
[1737028788214,0.59661,3352.9,3352.8,0.59658]
[1737028790006,0.59661,3352.9,3352.8,0.95377703]
[1737028790403,0.59661,3352.9,3352.8,1.34069719]
[1737028790608,0.59661,3352.9,3352.8,0.95377703]
[1737028791008,0.59661,3352.9,3352.4,4.9259]
[1737028791215,0.59665,3352.7,3352.6,0.59662]
[1737028791411,0.59665,3352.7,3352.6,1.34117077]
[1737028793916,0.59665,3352.7,3352.6,0.74455077]
[1737028794113,0.59665,3352.7,3352.6,1.34119077]
[1737028794622,0.59662,3352.7,3352.6,1.34118077]
[1737028795717,0.59662,3352.7,3352.6,1.81678077]
[1737028796124,0.59662,3352.7,3352.6,1.22015077]
[1737028796313,0.59662,3352.7,3352.6,1.81679077]
[1737028796509,0.59662,3352.7,3352.6,1.22015077]
[1737028796717,0.59662,3352.7,3352.6,0.74455077]
[1737028797119,0.59666,3352.5,3352.4,0.4831]
[1737028797313,0.59666,3352.5,3352.4,1.22977806]
[1737028798018,0.59666,3352.5,3352.4,0.74667806]
[1737028798720,0.59666,3352.5,3352.4,0.38817675]
[1737028799017,0.59666,3352.5,3352.4,0.74673664]
[1737028799222,0.59666,3352.5,3352.4,1.34341664]
[1737028800318,0.59666,3352.5,3352.4,0.74673664]
[1737028800515,0.59666,3352.5,3352.2,0.4756]
[1737028800516,0.59684,3351.6,3351.4,1.234]
[1737028800718,0.59684,3351.6,3351.5,1.20012443]
[1737028800918,0.59684,3351.6,3351.5,0.74762443]
[1737028801218,0.59689,3351.2,3351.1,0.4525]
[1737028801420,0.59689,3351.2,3351.1,1.20067069]
[1737028802124,0.59689,3351.2,3351.1,1.20027516]
[1737028802918,0.59689,3351.2,3351.1,0.81128826]
[1737028803218,0.59689,3351.2,3351.1,0.4525]
[1737028803415,0.59693,3351.0,3350.9,0.4591]
[1737028803619,0.59693,3351.0,3350.9,0.81750178]
[1737028803813,0.59693,3351.0,3350.9,1.2023598]
[1737028804017,0.59693,3351.0,3350.9,1.2021789]
[1737028804214,0.59693,3351.0,3350.9,0.4591]
[1737028804418,0.59693,3351.0,3350.9,1.20185743]
[1737028804820,0.59693,3351.1,3351.0,0.59692]
[1737028805026,0.59687,3351.4,3351.3,0.59686]
[1737028805217,0.59688,3351.3,3351.2,0.59687]
[1737028805420,0.59687,3351.3,3351.2,0.35788796]
[1737028806520,0.59687,3351.3,3351.2,0.84288796]
[1737028807321,0.59687,3351.3,3351.2,1.43977796]
[1737028807928,1.49204,3351.7,3351.2,1.43977796]
[1737028807929,0.59686,3351.4,3351.3,0.59685]
[1737028808131,0.59686,3351.4,3351.3,0.95473796]
[1737028808623,0.59686,3351.4,3351.1,3.2078]
[1737028808829,0.59689,3351.2,3351.1,3.2078]
[1737028809027,0.59689,3351.2,3350.9,0.4591]
[1737028809028,0.4898,3351.3,3350.9,0.4591]
[1737028809231,0.59693,3351.0,3350.9,0.4591]
[1737028809431,0.59693,3351.0,3350.9,0.35787886]
[1737028809623,0.4718,3351.0,3350.6,3.2078]
[1737028809831,0.59698,3350.7,3350.6,3.2078]
[1737028810026,0.4718,3351.0,3350.5,0.4872]
[1737028810027,1.49238,3350.9,3350.5,0.4872]
[1737028810326,0.597,3350.6,3350.5,0.4872]
[1737028810524,0.59705,3350.3,3350.2,3.80486]
[1737028810725,0.59705,3350.3,3350.2,4.54665623]
[1737028810921,0.59701,3350.6,3350.5,0.597]
[1737028811137,0.59697,3350.8,3350.7,0.59697]
[1737028811537,0.4718,3351.0,3350.6,3.67]
[1737028811538,0.59695,3350.9,3350.8,0.59694]
[1737028811831,0.59695,3350.9,3350.6,3.67]
[1737028811832,0.59696,3350.8,3350.7,0.4872]
[1737028812231,0.4718,3351.0,3350.0,2.37563715]
[1737028812425,0.4718,3351.0,3350.2,4.133]
[1737028812626,0.59705,3350.4,3350.3,0.95455048]
[1737028813126,0.59705,3350.4,3350.3,0.35752048]
[1737028813335,0.59705,3350.4,3350.2,4.133]
[1737028813633,0.59705,3350.4,3350.3,0.95446245]
[1737028813935,0.59705,3350.4,3350.3,0.59705]
[1737028814140,0.59705,3350.4,3350.3,0.95443291]
[1737028814335,0.59705,3350.4,3350.3,0.59705]
[1737028814729,0.59705,3350.3,3350.2,4.73006]
[1737028815134,0.59705,3350.3,3350.2,1.52227]
[1737028815331,2.46053,3350.6,3349.8,3.2078]
[1737028815531,2.37563715,3350.4,3349.9,1.19560807]
[1737028815731,0.5971,3350.0,3349.9,1.05201]
[1737028815936,0.4818,3350.3,3349.9,0.4549]
[1737028816233,0.5971,3350.1,3350.0,0.59708]
[1737028816632,0.59712,3349.9,3349.8,3.6559]
[1737028816824,0.4818,3350.3,3349.8,3.6559]
[1737028817028,0.4671,3350.4,3349.9,0.4549]
[1737028817334,0.4671,3350.4,3349.8,3.2078]
[1737028817529,0.59712,3350.0,3349.9,0.59711]
[1737028818027,0.59712,3350.0,3349.8,3.2078]
[1737028818028,0.5971,3350.1,3350.0,0.59709]
[1737028818434,0.4671,3350.4,3349.8,3.2078]
[1737028818629,0.59712,3349.9,3349.8,3.2078]
[1737028819833,0.59723,3349.3,3349.2,0.9513]
[1737028820232,0.59722,3349.4,3349.3,0.59722]
[1737028820438,0.59723,3349.3,3349.2,1.54854]
[1737028820838,0.59722,3349.4,3349.3,0.59722]
[1737028821134,0.9313,3349.8,3349.7,0.59716]
[1737028821338,1.52844,3349.8,3349.7,0.59716]
[1737028821644,0.487,3349.8,3349.7,0.59716]
[1737028822443,0.487,3349.8,3349.5,3.2078]
[1737028822941,0.59718,3349.6,3349.5,3.2078]
[1737028823644,0.59726,3349.2,3349.1,3.2078]
[1737028824234,2.97289715,3349.2,3349.1,3.2078]
[1737028824546,2.37563715,3349.2,3348.5,3.2078]
[1737028824737,0.59729,3349.0,3348.9,0.59729]
[1737028825044,0.4535,3349.1,3349.0,0.59728]
[1737028825045,1.05077,3349.1,3349.0,0.59728]
[1737028825250,0.4535,3349.1,3348.5,3.2078]
[1737028825548,0.4535,3349.1,3348.6,0.35723443]
[1737028825739,1.05077,3349.1,3349.0,0.59728]
[1737028826142,3.2078,3349.5,3348.8,2.37563715]
[1737028826352,3.2078,3349.5,3348.7,1.235]
[1737028826353,0.59714,3349.8,3349.7,0.59714]
[1737028826544,0.59712,3350.0,3349.9,0.59712]
[1737028826737,0.59711,3350.0,3349.9,0.59711]
[1737028826942,3.2078,3350.8,3349.8,3.2078]
[1737028827246,0.59698,3350.7,3350.6,0.59698]
[1737028827444,0.9028,3350.9,3350.3,3.2078]
[1737028827740,0.597,3350.7,3350.6,0.59699]
[1737028827943,1.49975,3350.9,3350.8,0.59696]
[1737028828149,3.86779715,3351.4,3350.4,0.4766]
[1737028828346,3.6972,3351.3,3350.5,0.35720829]
[1737028828546,0.4894,3351.3,3350.8,3.2078]
[1737028828745,0.59691,3351.2,3351.1,0.5969]
[1737028828944,0.59689,3351.2,3351.1,0.59691]
[1737028829151,0.59693,3351.1,3351.0,0.59692]
[1737028829749,0.59693,3351.1,3350.8,3.2078]
[1737028829750,0.59688,3351.3,3351.2,0.59688]
[1737028829945,0.478,3351.6,3350.8,4.70021]
[1737028830152,3.2078,3351.7,3351.6,0.59682]
[1737028830348,0.59676,3352.0,3351.8,0.59677]
[1737028830548,3.2078,3352.1,3351.6,3.2078]
[1737028830749,3.2078,3352.1,3351.9,0.59676]
[1737028830938,0.59675,3352.0,3351.9,0.59676]
[1737028831143,0.59675,3352.0,3351.8,0.59677]
[1737028831344,3.2078,3352.1,3352.0,0.59675]
[1737028831544,0.5967,3352.3,3352.1,0.59673]
[1737028831746,0.478,3352.5,3352.1,0.59673]
[1737028831947,3.80443,3352.7,3352.2,0.59671]
[1737028832249,3.2078,3352.7,3352.1,3.2078]
[1737028832450,0.59655,3353.1,3352.9,0.59658]
[1737028832848,0.59652,3353.3,3353.1,0.59655]
[1737028833049,0.4792,3353.5,3353.0,3.2078]
[1737028833551,3.2078,3353.8,3353.0,3.2078]
[1737028833757,0.5965,3353.4,3353.0,3.2078]
[1737028834055,3.2078,3353.8,3353.0,3.2078]
[1737028834243,0.9311,3354.1,3352.6,3.2078]
[1737028834244,3.2078,3353.4,3352.6,3.2078]
[1737028834753,3.2078,3353.4,3352.7,0.59662]
[1737028834955,0.59662,3352.8,3352.6,3.2078]
[1737028835355,0.59658,3353.0,3352.7,0.59662]
[1737028835653,0.59662,3352.7,3352.6,3.2078]
[1737028835844,3.2078,3353.0,3352.3,0.4497]
[1737028836254,3.2078,3353.0,3352.2,3.6825]
[1737028836855,0.59662,3352.8,3352.4,0.59668]
[1737028837055,3.2078,3353.0,3352.2,3.6825]
[1737028837253,0.59668,3352.4,3352.2,3.6825]
[1737028837553,3.2078,3353.0,3352.2,3.6825]
[1737028838053,0.59669,3352.3,3352.2,3.6825]
[1737028838445,0.59669,3352.3,3352.2,0.4747]
[1737028838647,3.2078,3352.6,3352.2,0.4747]
[1737028838851,3.2078,3353.0,3352.2,0.4747]
[1737028839158,0.5967,3352.3,3352.2,0.4747]
[1737028839659,0.59677,3351.9,3351.8,3.2078]
[1737028839855,3.2078,3352.6,3351.8,3.2078]
[1737028840061,0.59675,3352.0,3351.8,3.2078]
[1737028840247,3.2078,3352.6,3351.8,3.2078]
[1737028840447,0.59677,3351.9,3351.8,3.2078]
[1737028841259,2.08856,3352.1,3351.3,3.2078]
[1737028841456,0.59686,3351.4,3351.3,3.2078]
[1737028841765,0.59685,3351.5,3351.3,3.80467]
[1737028841962,0.59686,3351.4,3351.3,3.2078]
[1737028844460,0.4762,3352.0,3351.3,3.2078]
[1737028844761,0.59686,3351.4,3351.3,3.2078]
[1737028846254,1.96812,3352.0,3351.3,3.2078]
[1737028846255,0.59685,3351.5,3351.3,3.80466]
[1737028846561,0.59686,3351.4,3351.3,3.2078]
[1737028846954,0.59686,3351.4,3351.3,3.80467]
[1737028847262,0.59686,3351.4,3351.3,3.2078]
[1737028849761,0.59686,3351.4,3351.3,3.80467]
[1737028849961,0.59686,3351.4,3351.3,3.2078]
[1737028850959,3.2078,3352.2,3351.3,3.2078]
[1737028851261,2.79786403,3352.8,3351.8,3.2078]
[1737028851262,4.69942,3352.6,3351.8,3.2078]
[1737028851464,0.59675,3352.0,3351.9,0.4759]
[1737028851857,1.49166,3352.5,3351.9,0.4759]
[1737028851858,2.88806,3352.5,3351.9,0.4759]
[1737028852065,0.59674,3352.1,3352.0,0.59674]
[1737028852260,0.59675,3352.0,3351.9,0.4759]
[1737028853366,0.59684,3351.5,3351.4,3.2078]
[1737028854261,0.597,3350.6,3350.5,3.6729]
[1737028854562,0.59705,3350.3,3350.2,1.234]
[1737028855361,0.59707,3350.2,3350.1,3.2078]
[1737028855564,2.80116223,3350.4,3349.6,0.4559]
[1737028855765,2.80116223,3350.4,3349.3,3.2078]
[1737028855766,0.59721,3349.4,3349.3,3.2078]
[1737028856968,3.2078,3350.1,3349.3,3.2078]
[1737028857260,0.59721,3349.4,3349.3,3.2078]
[1737028857467,0.5971,3350.0,3349.6,0.59717]
[1737028857658,0.59715,3349.8,3349.6,0.59716]
[1737028857966,0.59715,3349.8,3349.3,3.2078]
[1737028857967,0.59713,3349.9,3349.7,3.80495]
[1737028858167,3.2078,3350.5,3349.7,6.00896223]
[1737028858375,3.2078,3350.5,3349.7,3.2078]
[1737028858866,3.2078,3350.5,3349.8,0.35616161]
[1737028859064,0.59703,3350.4,3350.2,0.59706]
[1737028859265,3.2078,3350.5,3349.9,1.234]
[1737028859463,3.2078,3350.5,3350.2,0.59707]
[1737028859768,0.59704,3350.4,3350.1,3.2078]
[1737028859960,0.59705,3350.3,3350.2,0.59706]
[1737028860464,1.49237,3350.9,3350.2,0.59706]
[1737028860665,0.59707,3350.2,3350.1,3.80488]
[1737028860869,0.59707,3350.2,3350.1,3.2078]
[1737028861366,3.2078,3350.4,3349.7,3.2078]
[1737028861567,0.59714,3349.8,3349.4,3.74136223]
[1737028861764,0.59718,3349.6,3349.5,1.234]
[1737028862069,1.94274,3350.3,3349.3,3.2078]
[1737028862070,0.59721,3349.4,3349.3,3.2078]
[1737028862369,4.1356,3350.3,3349.3,3.2078]
[1737028862570,3.2078,3350.3,3349.4,2.80116223]
[1737028862760,0.59711,3350.0,3349.9,0.59712]
[1737028862960,1.96802,3350.6,3349.7,3.2078]
[1737028862961,1.49252,3350.6,3349.7,3.2078]
[1737028863165,1.49252,3350.6,3349.9,0.59711]
[1737028863368,3.2078,3350.7,3349.7,3.2078]
[1737028863565,0.59714,3349.9,3349.7,3.2078]
[1737028863773,6.00896223,3350.4,3349.5,0.4656]
[1737028863970,3.2078,3349.8,3349.2,3.2078]
[1737028864164,0.59723,3349.3,3349.2,3.2078]
[1737028864577,0.59723,3349.3,3349.1,0.59725]
[1737028864869,0.59727,3349.1,3349.0,0.4783]
[1737028865065,0.59716,3349.7,3349.1,0.59726]
[1737028865265,0.59716,3349.7,3348.7,3.6915]
[1737028865266,3.2078,3349.8,3348.7,3.6915]
[1737028865465,0.59726,3349.2,3349.0,0.59728]
[1737028865870,0.59728,3349.1,3348.9,0.59729]
[1737028866069,1.49291,3349.7,3348.9,0.59729]
[1737028866070,1.49291,3349.7,3348.9,0.5973]
[1737028866268,0.59728,3349.0,3348.8,0.59732]
[1737028866463,0.5973,3348.9,3348.7,5.52283]
[1737028866675,1.49295,3349.6,3348.9,0.59728]
[1737028866870,0.59731,3348.9,3348.8,0.59731]
[1737028867070,1.49302,3349.5,3348.7,3.6915]
[1737028867477,0.59729,3349.0,3348.7,3.6915]
[1737028867775,0.59721,3349.4,3348.8,1.4933]
[1737028867969,3.2078,3349.8,3348.8,1.4933]
[1737028868163,3.2078,3349.8,3349.1,0.59726]
[1737028868164,0.59726,3349.2,3349.1,0.59726]
[1737028868469,1.49291,3349.7,3348.7,3.6915]
[1737028868667,1.49291,3349.7,3348.9,0.59729]
[1737028868668,0.5973,3349.0,3348.9,0.59729]
[1737028868875,3.2078,3349.8,3348.7,3.6915]
[1737028869066,0.59732,3348.8,3348.7,3.6915]
[1737028869268,0.59732,3348.8,3348.7,3.2078]
[1737028870174,0.59739,3348.4,3348.3,3.6935]
[1737028870575,1.49346,3348.5,3347.8,3.2078]
[1737028870767,2.80116223,3348.8,3347.5,1.234]
[1737028870768,1.49353,3348.3,3347.5,1.234]
[1737028870968,0.59753,3347.6,3347.5,1.234]
[1737028872267,0.59757,3347.4,3347.3,0.9756]
[1737028872479,0.59762,3347.1,3347.0,3.2078]
[1737028874279,0.59768,3346.8,3346.7,0.4499]
[1737028874680,3.2078,3347.1,3346.5,3.2078]
[1737028874975,0.59768,3346.8,3346.6,0.59771]
[1737028875176,0.59767,3346.9,3346.7,0.59769]
[1737028875372,3.2078,3347.1,3346.5,3.2078]
[1737028875765,3.2078,3347.1,3346.7,0.59768]
[1737028875967,0.59759,3347.3,3346.9,3.2078]
[1737028876180,3.2078,3347.6,3346.9,3.2078]
[1737028876372,0.59762,3347.1,3347.0,0.479]
[1737028876568,0.59762,3347.1,3346.9,3.2078]
[1737028876569,1.49388,3347.5,3346.5,3.2078]
[1737028876773,0.59761,3347.2,3347.0,0.59763]
[1737028876978,0.59761,3347.2,3347.1,0.59762]
[1737028877181,3.2078,3347.6,3346.9,3.2078]
[1737028877575,0.59755,3347.5,3347.3,0.59758]
[1737028877774,0.59759,3347.3,3347.2,0.5976]
[1737028877973,0.59757,3347.4,3347.3,0.59757]
[1737028878574,3.2078,3348.2,3347.3,3.2078]
[1737028878777,0.59752,3347.7,3347.5,0.59755]
[1737028879079,0.59755,3347.5,3347.4,1.51146]
[1737028879282,1.49362,3348.1,3347.4,0.9139]
[1737028879476,0.59757,3347.4,3347.3,3.2078]
[1737028879670,1.4938,3347.7,3347.1,1.235]
[1737028879870,0.5976,3347.2,3347.1,1.235]
[1737028880082,0.59755,3347.5,3347.0,0.59762]
[1737028880283,3.2078,3347.8,3346.9,3.2078]
[1737028880284,0.5976,3347.3,3346.9,3.2078]
[1737028880582,3.2078,3347.8,3346.9,3.2078]
[1737028880783,0.59757,3347.4,3347.3,3.2078]
[1737028881081,0.5976,3347.3,3346.9,3.2078]
[1737028881281,3.2078,3347.8,3346.9,3.2078]
[1737028881484,0.59764,3347.0,3346.9,3.2078]
[1737028881980,0.59763,3347.1,3347.0,0.59763]
[1737028882181,3.2078,3347.8,3346.9,3.2078]
[1737028882389,3.2078,3347.8,3347.6,0.59752]
[1737028882390,0.59753,3347.7,3347.6,0.59752]
[1737028882574,1.49365,3348.1,3347.4,0.4775]
[1737028882778,3.2078,3348.2,3346.6,1.235]
[1737028882779,1.4937,3347.9,3347.1,0.4612]
[1737028883076,2.80116223,3348.0,3347.1,0.4612]
[1737028883286,2.80116223,3347.6,3346.9,3.6853]
[1737028883478,0.59764,3347.0,3346.9,3.6853]
[1737028883988,0.59764,3347.0,3346.9,3.2078]
[1737028887092,0.59775,3346.4,3346.3,3.2078]
[1737028887282,0.59775,3346.4,3346.3,4.16141745]
[1737028887483,0.59775,3346.4,3346.3,3.2078]
[1737028887883,3.2078,3347.0,3346.3,3.2078]
[1737028888185,3.6687,3347.4,3346.4,1.8501565]
[1737028888387,0.59769,3346.8,3346.7,0.59768]
[1737028888777,0.59759,3347.3,3346.9,0.59764]
[1737028888976,0.59765,3347.0,3346.9,0.59764]
[1737028889198,0.59768,3346.9,3346.8,0.59766]
[1737028889391,1.49397,3347.3,3346.7,1.07688]
[1737028889392,0.59768,3346.8,3346.7,1.07688]
[1737028889591,0.59767,3346.9,3346.8,0.59766]
[1737028889883,3.6687,3347.4,3346.7,0.4792]
[1737028890087,0.5976,3347.3,3347.2,0.59759]
[1737028890587,0.5976,3347.3,3347.0,3.2078]
[1737028890588,0.59762,3347.2,3347.1,0.5976]
[1737028891190,0.59761,3347.3,3347.2,0.59759]
[1737028891385,1.49386,3347.6,3347.0,3.2078]
[1737028891586,0.59762,3347.1,3347.0,3.80544]
[1737028891790,0.59759,3347.4,3347.3,0.59756]
[1737028892090,1.4938,3347.7,3347.0,3.2078]
[1737028892291,0.59762,3347.2,3347.1,0.95375502]
[1737028892492,0.59762,3347.2,3347.1,0.59761]
[1737028892997,1.49387,3347.6,3347.0,3.2078]
[1737028893291,0.59762,3347.1,3347.0,3.2078]
[1737028893489,0.59762,3347.1,3347.0,4.16184574]
[1737028893888,0.59762,3347.1,3347.0,3.56420574]
[1737028894082,0.59762,3347.1,3347.0,3.2078]
[1737028894282,0.59762,3347.1,3347.0,4.16209052]
[1737028894485,3.2078,3347.8,3347.0,3.9468102]
[1737028894687,0.59762,3347.2,3347.1,0.35665052]
[1737028894885,0.59762,3347.2,3347.1,1.33657838]
[1737028895085,0.59762,3347.2,3347.1,0.73895838]
[1737028895694,0.59762,3347.2,3347.1,0.35660893]
[1737028896080,0.5976,3347.3,3347.2,0.59758]
[1737028896280,0.5976,3347.3,3347.2,1.33712598]
[1737028896492,0.5976,3347.3,3347.2,0.73954598]
[1737028896792,1.49387,3347.6,3346.6,3.6804]
[1737028896793,0.59769,3346.7,3346.6,3.6804]
[1737028896989,0.59769,3346.7,3346.6,4.42064226]
[1737028897886,0.59769,3346.7,3346.6,3.94804226]
[1737028898687,0.59769,3346.7,3346.6,3.94858717]
[1737028899491,0.59769,3346.7,3346.6,0.74078717]
[1737028900388,0.59769,3346.7,3346.6,1.33848717]
[1737028900591,0.59430242,3346.7,3346.6,1.33849717]
[1737028900891,0.59769,3346.8,3346.7,0.59768]
[1737028901081,2.88371,3347.5,3346.7,3.94858717]
[1737028901283,0.59763,3347.2,3347.1,0.59761]
[1737028901589,6.00896223,3347.6,3347.1,3.94858717]
[1737028901590,3.2078,3347.6,3347.1,3.94858717]
[1737028901796,3.2078,3348.3,3347.5,3.2078]
[1737028901997,3.2078,3348.3,3347.6,1.18888717]
[1737028902292,3.2078,3348.3,3347.7,1.19928717]
[1737028902488,0.4452,3348.5,3348.0,3.2078]
[1737028902682,0.5974,3348.4,3348.3,0.5974]
[1737028902887,0.59737,3348.6,3348.4,0.59737]
[1737028903189,0.59737,3348.6,3348.5,0.59737]
[1737028903381,0.4452,3349.5,3348.5,10.19134182]
[1737028903691,0.59715,3349.8,3349.6,0.59716]
[1737028903988,0.59715,3349.8,3349.7,3.2078]
[1737028904390,3.2078,3350.5,3349.7,3.2078]
[1737028904584,0.59711,3350.0,3349.8,0.59713]
[1737028904995,3.2078,3350.5,3349.7,3.80495]
[1737028905287,3.2078,3350.5,3349.7,3.2078]
[1737028905485,0.59714,3349.8,3349.7,3.2078]
[1737028905684,3.2078,3350.5,3349.7,3.56401203]
[1737028905885,3.2078,3350.5,3349.7,3.2078]
[1737028906194,3.2078,3350.5,3349.8,0.59713]
[1737028906390,3.2078,3350.5,3349.7,3.2078]
[1737028906391,0.59714,3349.9,3349.7,3.2078]
[1737028906689,0.59714,3349.9,3349.7,3.80496]
[1737028906895,0.59714,3349.8,3349.7,3.2078]
[1737028907091,0.59721,3349.4,3349.3,1.241]
[1737028907293,0.59721,3349.4,3349.3,1.59634383]
[1737028907593,0.59728,3349.0,3348.8,4.28091]
[1737028907792,0.59728,3349.0,3348.9,0.73652224]
[1737028907993,0.59728,3349.0,3348.9,0.73654808]
[1737028908389,0.59728,3349.0,3348.9,0.35543522]
[1737028908693,0.5973,3348.9,3348.8,3.2078]
[1737028909596,0.59721,3349.4,3348.8,3.80511]
[1737028909792,0.59727,3349.1,3348.9,0.59729]
[1737028910092,0.5973,3348.9,3348.8,3.2078]
[1737028910291,0.59728,3349.1,3348.9,0.5973]
[1737028910493,3.27056223,3349.5,3348.8,3.2078]
[1737028910688,0.59728,3349.0,3348.8,3.80511]
[1737028910895,0.59723,3349.4,3349.1,0.59725]
[1737028911196,0.5972,3349.5,3349.3,0.59722]
[1737028911704,0.5972,3349.5,3348.9,1.51728]
[1737028911705,0.59719,3349.5,3348.9,1.51728]
[1737028911999,0.59728,3349.1,3348.9,1.51729]
[1737028912191,3.2078,3349.6,3348.9,0.92]
[1737028912497,0.5973,3348.9,3348.8,3.2078]
[1737028914294,0.5973,3348.9,3347.7,3.2078]
[1737028914295,0.59749,3347.9,3347.7,3.2078]
[1737028914494,1.49345,3348.5,3347.7,4.4488]